Cogmind - Beta 12 @@@ ROGUE MODE // 2023.12.17 @ 02:56:14 Player: puppuppit Result: Destroyed by D-53 Grenadier with Mini Grenade Launcher Performance ------------- Evolutions (0) 0 Regions Visited (2) 400 Robots Destroyed (21) 105 Value Destroyed (500) 500 Prototype IDs (4) 80 Alien Tech Used (0) 0 Bonus (39) 39 TOTAL SCORE: 1124 Bonus ------- Follower Combat Kills 39 Cogmind --------- Core Integrity 0/250 Matter 300/300 Energy 89/100 System Corruption 0% Temperature Cool (21) Movement Core (50) Location -10/Mines Parts ------- > --- POWER (1) -------- (None) > --- PROPULSION (2) --- (None) > --- UTILITY (2) ------ Hacking Suite > --- WEAPON (2) ------- (None) > --- INVENTORY (5) ---- Hover Unit Hover Unit Heat Sink Structural Scanner Makeshift Shrapnel Gun Peak State ------------ > --- POWER ------------ Heavy Ion Engine > --- PROPULSION ------- Wheel Compact Wheel > --- UTILITY ---------- Small Storage Unit Hacking Suite > --- WEAPON ----------- Particle Cannon Particle Cannon > --- INVENTORY -------- Ion Engine [Rating: 13] Favorites ----------- Power Light Ion Engine Engine Light Ion Engine Power Core Light Nuclear Core Propulsion Hover Unit Wheel Wheel Hover Unit Hover Unit Flight Unit Flight Unit Utility Hacking Suite Storage Small Storage Unit Processor Visual Processing Unit Hackware Hacking Suite Weapon Particle Cannon Energy Cannon Particle Cannon Ballistic Gun Assault Rifle Build | -11 -10 -10 ------- Run | Jun Mat Min Slots Evolved . | . . . Power . | . . . Propulsion . | . . . Utility . | . . . Weapon . | . . . Parts Attached 28 | 5 20 3 Power 5 | 1 4 . Engine 4 | 1 3 . Core 1 | . 1 . Reactor . | . . . Propulsion 9 | 2 7 . Treads . | . . . Leg . | . . . Wheel 2 | 2 . . Hover 3 | . 3 . Flight 4 | . 4 . Utility 4 | 1 3 . Device . | . . . Storage 1 | 1 . . Processor 1 | . 1 . Hackware 2 | . 2 . Protection . | . . . Artifact . | . . . Weapon 10 | 1 6 3 Energy Gun . | . . . Energy Cannon 9 | . 6 3 Ballistic Gun 1 | 1 . . Ballistic Cannon . | . . . Launcher . | . . . Special Weapon . | . . . Impact Weapon . | . . . Slashing Weapon . | . . . Piercing Weapon . | . . . Special Melee Weapon . | . . . Unidentified Prototypes 1 | . 1 . Parts Lost 6 | . 2 4 Power 1 | . . 1 Propulsion 4 | . 2 2 Utility 1 | . . 1 Weapon . | . . . Highest Loss Streak 4 | . 2 4 To Critical Strikes . | . . . Average Slot Usage (%) 94 | . 91 99 Engine 12 | . 12 14 Wheel 7 | . 11 . Hover 18 | . 12 28 Flight 1 | . 2 . Storage 3 | . 6 . Processor 1 | . 1 . Hackware 21 | . 16 28 Energy Cannon 25 | . 23 27 Naked Turns . | . . . Heaviest Build 21 | 12 21 11 Greatest Support 26 | 26 26 12 Greatest Overweight (x) 4 | . 4 3 Average Overweight (x) . | . . . Largest Inventory Capacity 8 | 8 8 5 Average Capacity 5 | 7 6 5 Most Carried 5 | 1 5 5 Average Carried 3 | . 2 4 Final Capacity 8 | 8 5 5 Final Carried 5 | 1 5 5 Class Distribution -------------------- 72% | Scavenger-Mutant 27% | Mutant Dominant Class ---------------- Scavenger-Mutant | -10/Materials Scavenger-Mutant | -10/Mines Resources | -11 -10 -10 ----------- Run | Jun Mat Min Matter Collected 495 | 233 232 30 Remotely . | . . . Salvage Created 745 | . 578 167 Parts 39 | . 36 3 Haulers Intercepted . | . . . Recyclers Shooed . | . . . Parts Field Recycled . | . . . Retrieved Matter . | . . . Parts Self-Destructed . | . . . Prevented . | . . . Kills | -11 -10 -10 ------- Run | Jun Mat Min Combat Hostiles Destroyed 15 | . 10 5 Cannons 14 | . 9 5 Classes Destroyed 7 | . 5 2 Worker 3 | . . 3 Recycler 1 | . 1 . Operator 3 | . 3 . Watcher 3 | . 3 . Swarmer 2 | . 2 . Grunt 9 | . 8 1 Assembled 4 | . . 4 Best Kill Streak 4 | . 4 4 Combat Bots Only 4 | . 2 4 Max Kills in Single Turn 1 | . 1 1 Gunslinging . | . . . Exploded . | . . . Melee . | . . . Uniques/NPCs Destroyed . | . . . Combat | -11 -10 -10 -------- Run | Jun Mat Min Damage Taken 686 | . 317 369 Core 269 | . 98 171 Absorbed by Shields . | . . . Core Remaining (%) 100 | 100 . . Volleys Fired 67 | . 48 19 Largest 2 | . 2 2 Hottest 136 | . 136 136 Shots Fired 108 | . 72 36 Gun 5 | . 5 . Cannon 103 | . 67 36 Launcher . | . . . Special . | . . . Kinetic 5 | . 5 . Thermal 103 | . 67 36 Explosive . | . . . Electromagnetic . | . . . Robot Hit Streak 9 | . 9 5 Robot Miss Streak 5 | . 5 3 Penetration Max . | . . . Secondary Targets . | . . . Shots Hit Robots 58 | . 40 18 Core Hits 27 | . 18 9 Critical Kills 1 | . 1 . Critical Parts Destroyed . | . . . Critical Strikes 1 | . 1 . Meltdown 1 | . 1 . Melee Attacks . | . . . Impact . | . . . Slashing . | . . . Piercing . | . . . Sneak Attacks . | . . . Combat Hostiles . | . . . Follow-up Attacks . | . . . Damage Inflicted 1253 | . 863 390 Guns 25 | . 25 . Cannons 1228 | . 838 390 Explosions . | . . . Melee . | . . . Ramming . | . . . Kinetic 25 | . 25 . Thermal 1228 | . 838 390 Explosive . | . . . Electromagnetic . | . . . Impact . | . . . Slashing . | . . . Piercing . | . . . Highest Corruption . | . . . Average Corruption . | . . . Corruption Purged . | . . . Corruption Blocked . | . . . Overload Shots . | . . . Overflow Damage 23 | . 23 . Projectiles 23 | . 23 . Explosions . | . . . Melee . | . . . Knockbacks . | . . . Impact . | . . . Kinetic . | . . . Secondary . | . . . Self-Inflicted Damage . | . . . Shots . | . . . Rammed . | . . . Targets Rammed . | . . . Kicked . | . . . Crushed . | . . . Highest Temperature 461 | . 429 461 Average Temperature 141 | . 125 173 Received Heat Transfer 180 | . 135 45 Effects 6 | . 3 3 Shutdowns 3 | . 1 2 Energy Bleed 1 | . 1 . Interference 1 | . 1 . Short Circuit 1 | . . 1 Siege Activations . | . . . Robots Corrupted . | . . . Combat Hostiles . | . . . Parts Fried . | . . . Impact Corruptions . | . . . Robots Melted 1 | . 1 . Combat Hostiles 1 | . 1 . Parts Melted 7 | . 6 1 Heat Transferred 2220 | . 1517 703 Parts Sabotaged . | . . . Parts Stolen . | . . . Parts Stripped . | . . . Power Chain Reactions . | . . . Missiles Intercepted . | . . . Alert | -11 -10 -10 ------- Run | Jun Mat Min Peak Influence 340 | . 340 114 Initial 54 | . . 54 Average 106 | . 154 36 Maximum Alert Level 1 | . 1 . Low Security (%) 83 | 100 72 100 Level 1 16 | . 27 . Level 2 . | . . . Level 3 . | . . . Level 4 . | . . . Level 5 . | . . . High Security . | . . . Max Security . | . . . Squads Dispatched 2 | . 2 . Investigation . | . . . Extermination . | . . . Reinforcement 2 | . 2 . Assault . | . . . Garrison . | . . . Intercept . | . . . Searches Triggered . | . . . Construction Impeded . | . . . Haulers Reinforced . | . . . Active Scanning Responses . | . . . Cargo Convoy Interrupts . | . . . Stealth | -11 -10 -10 --------- Run | Jun Mat Min Distress Signals 4 | . 3 1 Communications Jammed . | . . . Distress Signals . | . . . Times Spotted 42 | . 28 14 Peak Tracking Total 7 | . 5 7 Tactical Retreats 3 | . 1 2 Traps | -11 -10 -10 ------- Run | Jun Mat Min Traps Triggered . | . . . Indirectly . | . . . Trap Hack Attempts . | . . . Triggered . | . . . Disarmed 3 | . 3 . Reprogrammed . | . . . Reused . | . . . Traps Extracted . | . . . Installed . | . . . Triggered . | . . . Machines | -11 -10 -10 ---------- Run | Jun Mat Min Machines Disabled 3 | . 3 . Max in Single Turn 1 | . 1 . Machines Repaired . | . . . Machines Sabotaged . | . . . Overloaded Fab Kills . | . . . Hacking | -11 -10 -10 --------- Run | Jun Mat Min Machines Accessed 6 | . 6 . Terminals 6 | . 6 . Fabricators . | . . . Repair Stations . | . . . Recycling Units . | . . . Scanalyzers . | . . . Garrison Access . | . . . Total Hacks 21 | . 21 . Successful 16 | . 16 . Failed 5 | . 5 . Catastrophic 1 | . 1 . Database Lockouts . | . . . Manual 1 | . 1 . Terminals 21 | . 21 . Fabricators . | . . . Repair Stations . | . . . Recycling Units . | . . . Scanalyzers . | . . . Garrison Access . | . . . Terminal Hacks 16 | . 16 . Record 2 | . 2 . Robot Analysis 1 | . 1 . Prototype ID Bank 2 | . 2 . Branch Access Points 1 | . 1 . Emergency Access Points 1 | . 1 . Repair Station Index 1 | . 1 . Alert Level 1 | . 1 . Unreport Threat 1 | . 1 . Disarm Traps 1 | . 1 . Dispatch Records 1 | . 1 . Surveillance Status 1 | . 1 . Recall Investigation 1 | . 1 . Hauler Manifests 1 | . 1 . Registered Components 1 | . 1 . Fabricator Hacks . | . . . Repair Station Hacks . | . . . Recycling Unit Hacks . | . . . Scanalyzer . | . . . Garrison Access Hacks . | . . . Unauthorized Hacks . | . . . Terminals . | . . . Fabricators . | . . . Repair Stations . | . . . Recycling Units . | . . . Scanalyzers . | . . . Garrison Access . | . . . Data Cores Recovered 1 | . 1 . Used 1 | . 1 . Hacking Detections 5 | . 5 . Full Trace Events . | . . . Feedback Events . | . . . Feedback Blocked . | . . . Robot Schematics Acquired . | . . . Robots Built . | . . . Authchips . | . . . Time . | . . . Total Robot Build Rating . | . . . Part Schematics Acquired . | . . . Parts Built . | . . . Authchips . | . . . Time . | . . . Total Part Build Rating . | . . . Parts Repaired . | . . . Time . | . . . Parts Recycled . | . . . Recycled Matter . | . . . Retrieved Matter . | . . . Retrieved Components . | . . . Parts Scanalyzed . | . . . Part Schematics Acquired . | . . . Parts Damaged . | . . . Bothacking | -11 -10 -10 ------------ Run | Jun Mat Min Used RIF Installer . | . . . Robots Hacked . | . . . Non-combat . | . . . Combat . | . . . Robot Hacks Applied . | . . . Relay Couplers Released . | . . . Fabnet Peak Effective % . | . . . Robots Rewired . | . . . Allies Hacked . | . . . Hacks Repelled . | . . . Allies | -11 -10 -10 -------- Run | Jun Mat Min Total Allies 2 | . . 2 Largest Group 2 | . . 2 Highest-Rated Group 42 | . . 42 Highest-Rated Ally 31 | . . 31 Total Orders . | . . . Ally Attacks 17 | . . 17 Total Damage 207 | . . 207 Kills 7 | . . 7 Allies Corrupted . | . . . Allies Melted . | . . . Intel | -11 -10 -10 ------- Run | Jun Mat Min Robot Analysis Total 1 | . 1 . Derelict Logs Recovered . | . . . Drone Launches . | . . . Drone Recoveries . | . . . Exploration | -11 -10 -10 ------------- Run | Jun Mat Min Turns Passed 1256 | 40 752 464 Spaces Moved 1386 | 36 811 539 Core 17 | 1 6 10 Treads . | . . . Legs . | . . . Wheels 189 | 35 154 . Hover 1074 | . 545 529 Flight 106 | . 106 . Fastest Speed 37 | 50 37 50 Average Speed 60 | 89 61 58 Slowest Speed 250 | 100 250 200 Overloaded Moves . | . . . Propulsion Burnouts . | . . . Robots Hopped 3 | . 3 . Cave-ins Triggered . | . . . Exploration Rate (%) 54 | 3 97 64 Regions Visited 2 Branch Regions 1 Pre-discovered Areas . | . . . Known Exits Taken 1 | . 1 . Unknown Exits Taken 1 | 1 . . Scrap Searched 1 | . . 1 Spaces Dug . | . . . Terrain Destroyed . | . . . Melee . | . . . Projectile . | . . . AOE . | . . . Terrain Rammed . | . . . Walls Destroyed . | . . . Machines Disabled . | . . . Actions | -11 -10 -10 --------- Run | Jun Mat Min Total 1685 | 41 991 653 Wait 175 | . 90 85 Move 1378 | 35 804 539 Hop 3 | . 3 . Pick Up 9 | 1 7 1 Fast Attach 23 | 5 15 3 Attach 3 | . 3 . Detach 4 | . 4 . Swap 2 | . 2 . Drop 21 | . 15 6 Fire 67 | . 48 19 Melee . | . . . Ram . | . . . Kick . | . . . Crush . | . . . Escape Stasis . | . . . Rewire . | . . . Trap . | . . . Miscellaneous . | . . . Route ------- -11/Junkyard -10/Materials (discovered 4 exits: [*Mat x3] / *Min) -10/Mines (discovered 1 exit: [*Mat]) History --------- Turn | Location | Event 24 | -11/Junkyard | Discovered new exit (range 15) 41 | -11/Junkyard | Entered Materials 210 | -10/Materials | Discovered new exit (range 6) 303 | -10/Materials | Build established: Mutant 508 | -10/Materials | Identified exit to Mines 525 | -10/Materials | Discovered new exit (range 15) 561 | -10/Materials | Discovered new exit (range 10) 654 | -10/Materials | Build established: Scavenger-Mutant 662 | -10/Materials | Discovered new exit (range 14) 793 | -10/Materials | Entered Mines 823 | -10/Mines | A weapon hastily lodged in a ceiling crevice suddenly fell to the ground 856 | -10/Mines | Assembled infested the area 861 | -10/Mines | Assisted by a Guerilla fighting off Assembled 882 | -10/Mines | Core integrity fell below 50% 1201 | -10/Mines | Discovered new exit (range 12) 1254 | -10/Mines | Core integrity fell below 20% 1257 | -10/Mines | Destroyed by D-53 Grenadier with Mini Grenade Launcher Last Messages --------------- 00908_ Acquired 20 matter. 00930_ Dropped Broken Particle Cannon. 00942_ Acquired Particle Cannon. 00969_ Acquired 10 matter. 01093_ K-01 Serf destroyed. 01163_ K-01 Serf sends out distress signal. 01184_ Particle Gun melted. 01184_ G-47 Trooper destroyed. 01201_ EXIT=FOUND 01207_ K-01 Serf destroyed. 01219_ K-01 Serf collects debris. 01252_ K-01 Serf destroyed. 01253_ Lgt. Ion Engine destroyed. 01253_ Hover Unit destroyed. 01253_ Hacking Suite destroyed. 01254_ K-01 Serf collects debris. 01255_ Hover Unit destroyed. 01255_ D-53 Grenadier destroyed. 01255_ Dropped Particle Cannon. 01257_ The unstable cave ceiling collapses. Map ----- +----------------------------------------------------+ | ?????# % ## ###%#???????????????????????? | | ?????## % ### #?# #???????????????????????? | | ??????## #?# #?#%#???????????????????????? | | ???????# #?#%#?# #???????????????????????? | | ???????## ##?# #?# ######??????????????????? | | ????????#####?? %?# #??????????????????? | | ?????????? #???" ?######%#??????????????????? | | ?????????? #??? ??????#%#??????????????????? | | ??????????#????% ??????# #??????????????????? | | ??????????????? ??????# #??????????????????? | | ??????????????? ??????# #??????????????????? | | ??????????????? ??????# ??? #?????????????? | | ??????????????? #?????# % ?? #?????????????? | | ??????????????? #?????## #? #?????????????? | | ??????????????? ??????#=% ## #?????????????? | | ??????????????????????# ##????????????? | | ??????????????????????## #????????????? | | ??????????????????????## #????????????? | | ???????####??????????## ##????????????? | | ??????## ####??????## ##?????????????? | | ??????# ##?????# % ##??????????????? | | ??????# #?????# !d ###???????????????? | | ???????# #????## ##?????????????????? | | ????????# ##???# #?????????????????? | | ????????# ##### #] #??????????????????? | | ????????# %@] #??????????????????? | | ????????# < ## #??????????????????? | | ????????## ######### #??????????????????? | | ?????????###???????## ##??????????????????? | | ????????????????????######???????????????????? | | ?????????????????????????????????????????????? | | | | | | | | | | | | | | | | | | | | | | | | | | | | | | | | | | | | | | | +----------------------------------------------------+ Best States ------------- Heat Dissipation 25 Energy Generation 14 Energy Capacity 280 Matter Stores 300 Matter Capacity 300 Sight Range 18 Terrain Scan Density 10 Evasion (%) 62 Offensive Hacking 20 Item Schematics ----------------- None Robot Schematics ------------------ None Fabricated ------------ Nothing Alien Tech Used ----------------- None Achievements -------------- None Challenges ------------ None Game ------ Seed ShadingPropulsionChronowheel Manual? 0 Play Time 00:23:01 Cumulative 30.8 hours Start 2023.12.17 @ 02:32:21 End 2023.12.17 @ 02:56:14 Sessions 1 Manual Loads 0 Difficulty Rogue Special Mode None Game No. 19 Rogue 19 Adventurer 0 Explorer 0 Win Type - Total 0 Types 0/0/0/0/0/0/0/0/0 Lore% 22 Gallery% 31 Achievement% 30 Wizard Run 0 Options --------- ASCII 0 Keyboard 1 Movement Arrows Keybinds 0 Fullscreen 1 Font 12/Proggy Map View 83x54 Tactical HUD 1 Map Filters NONE Filters NONE Steam 0 RUN: b37d7721-0d84-4b1d-a66a-964afe28fa7e